bitfinex-derivatives/quotes_BNBF0:USTF0_20250309
["timestamp","ask_amount","ask_price","bid_price","bid_amount"]
[1741560073669,2.88820522,555.58,554.86,0.65789522]
[1741560073868,2.88820522,555.57,554.87,0.65788872]
[1741560074069,2.88820522,555.56,554.88,0.29744394]
[1741560074264,2.88820522,555.55,554.88,0.65788223]
[1741560074469,2.88820522,555.55,554.83,1.3329422]
[1741560074470,4.29032614,555.54,554.89,0.65787573]
[1741560074663,1.40212092,555.54,554.9,0.65786924]
[1741560074862,1.40212092,555.54,554.91,0.65786274]
[1741560075066,1.40212092,555.54,554.92,0.65785625]
[1741560075269,1.40212092,555.53,554.93,0.65784975]
[1741560075471,1.40212092,555.53,554.94,0.65784326]
[1741560075770,1.40212092,555.53,554.83,1.3329422]
[1741560075771,1.40212092,555.53,554.95,0.65783676]
[1741560075962,1.40212092,555.53,554.96,0.65783027]
[1741560076164,1.40212092,555.52,554.97,0.65782378]
[1741560076465,1.40212092,555.52,554.51,1.3329422]
[1741560076466,1.40212092,555.52,554.98,0.36037334]
[1741560077066,2.23112092,555.51,554.98,0.36037334]
[1741560077566,2.54454408,555.51,554.98,0.36037334]
[1741560078072,1.40212092,555.5,554.99,0.29744535]
[1741560078372,1.40212092,555.49,555.0,0.36036036]
[1741560078574,1.40212092,555.49,555.01,0.29744535]
[1741560078872,1.14242316,555.51,555.02,0.36034737]
[1741560079073,1.14242316,555.51,555.03,0.29744535]
[1741560079376,0.829,555.51,555.04,0.36033439]
[1741560079570,0.829,555.51,555.05,0.29744535]
[1741560079872,0.829,555.51,555.06,0.3603214]
[1741560080074,0.829,555.51,555.07,0.29744535]
[1741560080673,0.829,555.51,555.08,0.36030842]
[1741560080875,0.829,555.51,555.09,0.29744535]
[1741560081068,0.829,555.51,555.1,0.36029544]
[1741560081271,0.829,555.51,555.11,0.29744535]
[1741560081970,0.829,555.51,555.12,0.36028246]
[1741560082173,0.829,555.51,555.13,0.2973565]
[1741560082370,0.829,555.51,555.14,0.36026948]
[1741560082575,0.829,555.51,555.15,0.2973565]
[1741560083271,0.829,555.51,555.16,0.3602565]
[1741560083469,0.829,555.51,555.17,0.2973565]
[1741560083671,0.829,555.51,555.16,0.3602565]
[1741560085675,0.829,555.51,555.17,0.29720905]
[1741560085874,0.829,555.51,555.18,0.36024352]
[1741560086076,0.829,555.51,555.19,0.29720905]
[1741560086278,0.829,555.51,555.2,0.36023054]
[1741560087078,0.829,555.51,555.21,0.29721282]
[1741560089180,0.829,555.51,555.22,0.36021757]
[1741560089681,0.829,555.51,555.23,0.29723584]
[1741560089981,0.829,555.51,555.24,0.36020459]
[1741560090379,0.829,555.51,555.25,0.29723584]
[1741560090581,0.829,555.51,555.26,0.36019162]
[1741560090880,0.829,555.51,555.27,0.29723584]
[1741560091081,0.829,555.51,555.28,0.36017864]
[1741560091381,0.829,555.51,555.29,0.29723584]
[1741560091584,0.829,555.51,555.3,0.36016567]
[1741560091779,0.829,555.51,555.31,0.29723584]
[1741560092884,0.829,555.51,555.32,0.3601527]
[1741560093177,0.829,555.51,555.33,0.29723584]
[1741560093382,0.829,555.51,555.34,0.36013973]
[1741560093583,0.829,555.51,555.35,0.29723584]
[1741560094084,0.829,555.51,555.36,0.36012676]
[1741560094285,0.829,555.51,555.37,0.29723584]
[1741560095285,0.829,555.51,555.38,0.65736688]
[1741560095485,0.829,555.51,555.39,0.29725309]
[1741560096187,0.829,555.51,555.39,0.6573604]
[1741560096386,0.829,555.51,555.4,0.29725309]
[1741560098983,0.829,555.51,555.39,0.36010731]
[1741560104087,0.31331734,555.64,555.39,0.36010731]
[1741560106284,0.262,555.7,555.39,0.36010731]
[1741560106485,0.31334696,555.63,555.39,0.36010731]
[1741560106685,0.262,555.7,555.39,0.36010731]
[1741560106886,1.40031784,555.69,555.39,0.36010731]
[1741560107392,1.40031784,555.68,555.39,0.36010731]
[1741560107594,1.71368878,555.68,555.39,0.36010731]
[1741560107791,1.40031784,555.67,555.39,0.36010731]
[1741560108391,1.40031784,555.66,555.39,0.36010731]
[1741560108792,1.40031784,555.65,555.39,0.36010731]
[1741560109291,2.88594207,555.64,554.55,1.3329422]
[1741560109492,2.88594207,555.63,554.64,1.3329422]
[1741560109692,6.52582557,555.62,554.66,0.36058125]
[1741560109895,2.88594207,555.61,554.67,0.29746586]
[1741560110192,11.14341632,555.6,554.69,0.36056175]
[1741560110392,2.88594207,555.59,554.7,0.29746586]
[1741560110594,2.88594207,555.58,554.72,0.36054225]
[1741560110794,2.88594207,555.57,554.73,0.29746586]
[1741560111090,6.52582557,555.56,554.75,0.36052275]
[1741560111295,2.88594207,555.55,554.76,0.29746586]
[1741560111495,2.88594207,555.54,554.77,0.36050976]
[1741560111692,2.88594207,555.53,554.78,0.2975117]
[1741560111897,2.88594207,555.52,554.79,0.36049676]
[1741560112197,4.28571922,555.51,554.8,0.2975117]
[1741560112396,2.88540138,555.5,554.81,0.36048376]
[1741560112598,1.40031784,555.5,554.82,0.2975117]
[1741560112997,0.31342457,555.51,554.83,0.36047077]
[1741560112998,1.40031784,555.49,554.83,0.36047077]
[1741560113298,1.40031784,555.49,554.84,0.2975117]
[1741560113494,1.40031784,555.49,554.85,0.36045778]
[1741560113697,1.40031784,555.48,554.86,0.2975117]
[1741560113901,1.40031784,555.48,554.87,0.36044478]
[1741560114198,1.40031784,555.48,554.88,0.2975117]
[1741560114390,0.31342457,555.51,554.89,0.36043179]
[1741560114595,0.31342457,555.51,554.9,0.2975117]
[1741560114795,0.31342457,555.51,554.91,0.3604188]
[1741560115098,0.31342457,555.51,554.92,0.2975117]
[1741560115301,0.262,555.57,554.93,0.36040581]
[1741560115494,0.3133526,555.5,554.94,0.2975117]
[1741560115700,0.262,555.57,554.95,0.36039282]
[1741560115903,0.262,555.57,554.96,0.2975117]
[1741560116195,0.262,555.57,554.97,0.36037984]
[1741560116395,0.262,555.57,554.98,0.2975117]
[1741560116604,0.31331452,555.56,554.99,0.36036685]
[1741560116801,0.31331452,555.56,555.0,0.2975117]
[1741560117002,0.31331452,555.56,555.01,0.36035386]
[1741560117196,0.31331452,555.56,555.02,0.2975117]
[1741560117399,0.31331452,555.56,555.03,0.36034088]
[1741560117600,0.31331452,555.56,555.04,0.2975117]
[1741560117898,0.262,555.57,555.04,0.2975117]
[1741560117899,0.262,555.57,555.05,0.36032789]
[1741560118104,0.262,555.57,555.06,0.2975117]
[1741560118401,0.262,555.57,555.07,0.36031491]
[1741560118602,0.262,555.57,555.08,0.2975117]
[1741560119307,0.262,555.57,555.07,0.36031491]
[1741560119516,0.262,555.57,555.08,0.29731849]
[1741560121604,0.262,555.57,555.09,0.36030193]
[1741560121799,0.262,555.57,555.1,0.29731849]
[1741560122002,0.262,555.57,555.11,0.36028895]
[1741560122199,0.262,555.57,555.12,0.29731849]
[1741560122404,1.009,555.57,555.13,0.65760162]
[1741560122600,1.009,555.57,555.14,0.36026948]
[1741560122801,1.009,555.57,555.15,0.29732565]
[1741560123007,1.009,555.57,555.16,0.3602565]
[1741560123202,1.009,555.57,555.17,0.29732565]
[1741560123403,1.009,555.57,555.18,0.36024352]
[1741560123610,1.009,555.57,555.19,0.29732565]
[1741560123811,1.009,555.57,555.2,0.36023054]
[1741560124104,1.009,555.57,555.21,0.29732565]
[1741560126310,1.009,555.57,555.22,0.36021757]
[1741560126614,1.009,555.57,555.23,0.29732565]
[1741560128311,1.009,555.57,555.24,0.36020459]
[1741560128507,1.009,555.57,555.25,0.29732565]
[1741560128714,0.747,555.57,555.25,0.29732565]
[1741560129710,0.747,555.57,555.24,0.36020459]
[1741560129910,0.747,555.57,555.25,0.29734667]
[1741560131515,0.747,555.57,555.25,0.65754477]
[1741560131713,0.747,555.57,555.26,0.29734667]
[1741560131916,0.747,555.57,555.27,0.36018513]
[1741560132115,0.747,555.57,555.28,0.29734667]
[1741560133313,0.747,555.57,555.29,0.36017216]
[1741560133615,0.747,555.57,555.3,0.29734667]
[1741560135309,0.747,555.57,555.29,0.36017216]
[1741560135513,0.747,555.57,555.3,0.2972862]
[1741560137219,0.747,555.57,555.31,0.29723272]
[1741560137415,0.747,555.57,555.3,0.29723272]
[1741560137618,0.747,555.57,555.31,0.29723272]
[1741560137814,0.747,555.57,555.3,0.29723272]
[1741560138420,0.262,555.58,555.3,0.29723272]
[1741560138620,0.262,555.58,555.31,0.36015919]
[1741560138819,0.262,555.58,555.32,0.29723272]
[1741560139021,0.262,555.58,555.33,0.65739116]
[1741560139215,0.262,555.58,555.34,0.29724495]
[1741560140418,0.262,555.58,555.35,0.36013324]
[1741560140619,0.262,555.58,555.36,0.29724495]
[1741560141019,0.262,555.58,555.37,0.36012028]
[1741560141519,0.262,555.58,555.38,0.29699787]
[1741560142423,0.262,555.58,555.39,0.36010731]
[1741560142819,0.262,555.58,555.4,0.29694094]
[1741560143620,0.262,555.58,555.41,0.29694094]
[1741560143820,0.262,555.58,555.42,0.6570288]
[1741560144016,0.262,555.58,555.43,0.29694094]
[1741560144422,0.262,555.58,555.44,0.65701583]
[1741560144618,0.262,555.58,555.45,0.29694094]
[1741560144822,0.262,555.58,555.46,0.65700287]
[1741560145022,0.262,555.58,555.47,0.65699638]
[1741560145219,0.262,555.58,555.48,0.29694094]
[1741560145524,0.262,555.58,555.49,0.65698342]
[1741560145721,0.262,555.58,555.5,0.65697694]
[1741560145924,0.262,555.58,555.51,0.65697046]
[1741560146222,0.262,555.58,555.52,0.65696398]
[1741560146418,0.262,555.58,555.53,0.36001656]
[1741560146623,0.262,555.58,555.54,0.29694094]
[1741560146822,0.262,555.58,555.55,0.3600036]
[1741560147017,0.262,555.58,555.56,0.29694094]
[1741560147222,0.262,555.58,555.57,0.35999064]
[1741560147417,0.262,555.58,555.57,0.65693158]
[1741560149022,0.766,555.67,555.57,0.65693158]
[1741560149223,0.766,555.67,555.58,0.29694094]
[1741560150220,0.766,555.67,555.59,0.29669179]
[1741560150425,0.766,555.67,555.58,0.29669179]
[1741560156326,0.766,555.67,555.59,0.35997768]
[1741560156528,0.766,555.67,555.6,0.29669179]
[1741560157825,0.766,555.67,555.61,0.35996472]
[1741560158126,0.766,555.67,555.62,0.29669179]
[1741560160332,0.766,555.67,555.63,0.35995176]
[1741560160529,0.766,555.67,555.64,0.29669179]
[1741560160723,0.766,555.67,555.65,0.35993881]
[1741560160928,0.766,555.67,555.66,0.29669179]
[1741560161127,0.766,555.67,555.66,0.65662412]
[1741560163328,0.766,555.67,555.66,0.65684196]
[1741560168833,0.766,555.67,555.66,0.35993233]
[1741560169033,0.766,555.67,555.66,0.65689913]
[1741560170731,0.261,555.91,555.66,0.65689913]
[1741560170732,0.261,555.91,555.66,0.65697553]
[1741560170935,0.261,555.91,555.67,0.2970432]
[1741560171233,0.261,555.91,555.68,0.35991937]
[1741560171532,0.261,555.91,555.69,0.2970432]
[1741560171732,0.261,555.91,555.7,0.35990642]
[1741560172432,0.261,555.91,555.71,0.29705386]
[1741560172633,0.261,555.91,555.72,0.35989347]
[1741560172829,0.261,555.91,555.73,0.29705386]
[1741560173027,0.261,555.91,555.74,0.35988051]
[1741560173228,0.31302283,556.24,555.75,0.29705386]
[1741560173431,0.31302283,556.24,555.76,0.35986756]
[1741560173826,0.934,556.23,555.77,0.29705386]
[1741560176534,0.261,556.22,555.77,0.29705386]
[1741560176934,0.261,556.22,555.78,0.35985461]
[1741560177134,0.261,556.22,555.79,0.29705386]
[1741560178539,0.31295808,556.21,555.8,0.29705015]
[1741560178734,0.31295808,556.21,555.78,0.35985461]
[1741560181342,0.261,556.22,555.78,0.35985461]
[1741560181540,0.31302142,556.2,555.78,0.35985461]
[1741560182943,1.39237828,556.19,555.78,0.35985461]
[1741560183347,1.39237828,556.18,555.78,0.35985461]
[1741560183846,2.87889679,556.17,555.78,0.35985461]
[1741560184042,2.8789548,556.16,555.78,0.35985461]
[1741560184346,2.8789548,556.15,555.78,0.35985461]
[1741560184547,2.8789548,556.14,555.78,0.35985461]
[1741560184747,2.8789548,556.13,555.78,0.35985461]
[1741560184949,2.8789548,556.12,555.78,0.35985461]
[1741560185147,2.8789548,556.11,555.78,0.35985461]
[1741560185348,2.8789548,556.1,555.78,0.35985461]
[1741560185544,3.61722612,556.12,555.78,0.35985461]
[1741560185745,6.49714431,556.11,555.78,0.35985461]
[1741560185941,1.08149689,556.1,555.78,0.35985461]
[1741560186144,1.08150953,556.09,555.78,0.35985461]
[1741560186351,1.39237828,556.09,555.78,0.35985461]
[1741560186550,2.88045197,556.08,555.78,0.35985461]
[1741560186847,0.31302142,556.2,555.78,0.35985461]
[1741560186848,2.4743374,556.07,555.78,0.35985461]
[1741560187043,1.39237828,556.07,555.78,0.35985461]
[1741560187244,1.08193125,556.06,555.78,0.35985461]
[1741560187443,1.39237828,556.05,555.78,0.35985461]
[1741560187850,1.39237828,556.04,554.98,1.3329422]
[1741560188055,1.39237828,556.04,555.0,0.36036036]
[1741560188255,1.39237828,556.04,555.01,0.29720615]
[1741560188554,0.31316931,556.03,555.03,0.36034088]
[1741560188755,0.31316931,556.03,555.04,0.29720615]
[1741560188955,1.39237828,556.02,555.06,0.3603214]
[1741560189157,1.39237828,556.02,555.07,0.29720615]
[1741560189355,1.39237828,556.02,555.09,0.36030193]
[1741560189552,1.39237828,556.01,555.1,0.29720615]
[1741560189756,1.39237828,556.01,555.12,0.36028246]
[1741560190058,1.39237828,556.01,555.13,0.29720615]
[1741560190258,1.39237828,556.01,555.15,0.36026299]
[1741560190458,1.39237828,556.0,555.16,0.29720615]
[1741560190659,1.39237828,556.0,555.18,0.36024352]
[1741560190857,1.39237828,555.99,555.19,0.29720615]
[1741560191054,1.39237828,555.99,555.2,0.36023054]
[1741560191255,1.39237828,555.99,555.21,0.29720615]
[1741560191451,1.39237828,555.98,555.22,0.36021757]
[1741560191656,1.39237828,555.98,555.23,0.29720615]
[1741560192053,1.39237828,555.98,555.24,0.36020459]
[1741560192252,1.39237828,555.97,555.25,0.29720615]
[1741560192451,1.39237828,555.97,555.26,0.36019162]
[1741560192649,1.39237828,555.96,555.27,0.29720615]
[1741560192858,1.39237828,555.96,555.28,0.36017864]
[1741560193057,1.39237828,555.96,555.29,0.29720615]
[1741560193253,1.39237828,555.96,555.3,0.36016567]
[1741560193455,1.39237828,555.95,555.31,0.29720615]
[1741560193657,1.65337828,555.95,555.32,0.3601527]
[1741560193857,1.39237828,555.94,555.33,0.29720615]
[1741560194061,1.39237828,555.94,555.34,0.36013973]
[1741560194358,1.39237828,555.94,555.35,0.29721407]
[1741560194558,0.31314817,555.93,555.36,0.36012676]
[1741560194761,0.31314817,555.93,555.37,0.29721407]
[1741560194954,0.31314817,555.93,555.38,0.36011379]
[1741560195254,0.31314817,555.93,555.39,0.29721407]
[1741560195455,0.31314817,555.93,555.4,0.36010082]
[1741560195860,0.31314817,555.93,555.41,0.29721407]
[1741560196061,0.31314817,555.93,555.42,0.36008786]
[1741560196261,0.261,555.95,555.42,0.36008786]
[1741560196455,0.261,555.95,555.43,0.29722796]
[1741560196664,0.261,555.95,555.43,0.65730933]
[1741560196957,0.261,555.95,555.44,0.29722796]
[1741560197561,0.31312563,555.94,555.44,0.29722796]
[1741560198158,0.31312563,555.94,555.43,0.36008137]
[1741560198361,1.39749019,555.93,555.43,0.36008137]
[1741560198765,1.39749019,555.92,555.43,0.36008137]
[1741560198959,1.39749019,555.91,555.43,0.36008137]
[1741560199660,1.39749019,555.9,555.43,0.36008137]
[1741560199964,1.39749019,555.89,555.43,0.36008137]
[1741560200360,1.39749019,555.88,555.43,0.36008137]
[1741560200565,1.71077086,555.88,555.43,0.36008137]
[1741560200966,1.39749019,555.87,555.43,0.36008137]
[1741560201666,1.39749019,555.86,555.43,0.36008137]
[1741560201865,1.39749019,555.85,555.43,0.36008137]
[1741560202466,1.39749019,555.84,555.43,0.36008137]
[1741560203067,0.31328067,555.88,555.43,0.36008137]
[1741560203468,1.39506966,555.87,555.43,0.36008137]
[1741560204169,1.39506966,555.86,555.43,0.36008137]
[1741560204568,1.39506966,555.85,555.43,0.36008137]
[1741560204962,0.31328067,555.88,555.43,0.36008137]
[1741560204963,0.922,555.84,555.43,0.36008137]
[1741560205669,0.31330041,555.83,555.43,0.36008137]
[1741560207265,1.39403031,555.82,555.43,0.36008137]
[1741560207868,0.31330041,555.83,555.43,0.36008137]
[1741560208268,0.922,555.84,555.43,0.36008137]
[1741560209368,0.922,555.84,555.44,0.29719721]
[1741560209670,0.922,555.84,555.45,0.36006841]
[1741560209870,0.922,555.84,555.46,0.29719721]
[1741560210071,0.922,555.84,555.47,0.36005544]
[1741560212371,0.922,555.84,555.48,0.29721891]
[1741560212566,0.922,555.84,555.47,0.36005544]
[1741560213570,0.922,555.84,555.48,0.29721537]
[1741560214469,0.922,555.84,555.47,0.36005544]
[1741560214673,0.922,555.84,555.48,0.29720023]
[1741560215274,0.922,555.84,555.48,0.65724919]
[1741560215474,0.922,555.84,555.49,0.29720023]
[1741560215873,0.922,555.84,555.5,0.360036]
[1741560216070,0.922,555.84,555.51,0.29720023]
[1741560216275,0.922,555.84,555.51,0.36002952]
[1741560216475,0.922,555.84,555.52,0.29717021]
[1741560217075,0.31312986,555.87,555.52,0.29717021]
[1741560218878,0.31312986,555.87,555.51,0.36002952]
[1741560219476,0.31312986,555.87,555.52,0.29724032]
[1741560219880,0.31312986,555.87,555.51,0.36002952]
[1741560220375,0.731,555.86,555.51,0.36002952]
[1741560223981,0.26,555.85,555.51,0.36002952]
[1741560227781,0.26,555.85,555.52,0.29716855]
[1741560227982,0.26,555.85,555.53,0.36001656]
[1741560228184,0.26,555.85,555.54,0.29716855]
[1741560228482,0.26,555.85,555.54,0.65717863]
[1741560228683,0.26,555.85,555.55,0.29716855]
[1741560230479,0.26,555.85,555.56,0.35999712]
[1741560230679,0.26,555.85,555.57,0.29716855]
[1741560230884,0.26,555.85,555.58,0.35998416]
[1741560231079,0.26,555.85,555.59,0.29715379]
[1741560231278,0.26,555.85,555.6,0.3599712]
[1741560231483,0.26,555.85,555.61,0.29715379]
[1741560231784,0.26,555.85,555.62,0.35995824]
[1741560232382,0.26,555.85,555.63,0.29715207]
[1741560232582,0.26,555.85,555.62,0.35995824]
[1741560232982,0.26,555.85,555.63,0.29715212]
[1741560234783,0.26,555.85,555.64,0.297162]
[1741560234984,0.26,555.85,555.65,0.297162]
[1741560235187,0.26,555.85,555.63,0.297162]
[1741560235387,0.26,555.85,555.64,0.297162]
[1741560235590,0.26,555.85,555.63,0.297162]
[1741560235890,0.26,555.85,555.64,0.297162]
[1741560236089,0.26,555.85,555.63,0.297162]
[1741560236291,0.26,555.85,555.64,0.297162]
[1741560236491,0.26,555.85,555.65,0.29716172]
[1741560236692,0.26,555.85,555.66,0.29716172]
[1741560236892,0.26,555.85,555.63,0.29716172]
[1741560237190,0.26,555.85,555.62,0.35995824]
[1741560238488,0.31317495,555.84,555.62,0.35995824]
[1741560238684,2.88762864,555.83,555.29,1.3329422]
[1741560238892,2.88764805,555.82,555.3,0.65747321]
[1741560239085,2.88761773,555.81,555.31,0.65746673]
[1741560239285,1.40289612,555.83,555.32,0.3601527]
[1741560239493,1.40289612,555.8,555.33,0.29730754]
[1741560239692,1.40289612,555.79,555.33,0.29730754]
[1741560240190,1.40289612,555.78,555.33,0.29730754]
[1741560240492,2.8878273,555.77,555.33,0.29730754]
[1741560240689,1.40289612,555.76,555.33,0.29730754]
[1741560241087,1.40289612,555.75,555.33,0.29730754]
[1741560241599,3.20153744,555.74,555.33,0.29730754]
[1741560241893,2.88831015,555.73,555.33,0.29730754]
[1741560242091,3.96139735,555.74,555.33,0.29730754]
[1741560242293,4.29091882,555.73,555.33,0.29730754]
[1741560242592,1.40289612,555.73,555.33,0.29730754]
[1741560242993,1.40289612,555.72,555.33,0.29730754]
[1741560243188,1.40289612,555.72,555.32,0.3601527]
[1741560243392,1.40289612,555.72,555.33,0.29734241]
[1741560243792,1.40289612,555.71,555.33,0.29734241]
[1741560244191,1.40289612,555.7,555.33,0.29734241]
[1741560244396,1.40289612,555.7,555.32,0.3601527]
[1741560244596,1.40289612,555.7,555.33,0.29730347]
[1741560244796,2.8877511,555.83,555.33,0.29730347]
[1741560245095,2.8877511,555.82,555.32,0.3601527]
[1741560245295,2.8877511,555.81,555.33,0.29730349]
[1741560245496,3.64776419,555.81,555.33,0.29730349]
[1741560245892,2.88772817,555.8,555.33,0.29730349]
[1741560246094,6.53549236,555.79,555.33,0.29730349]
[1741560246291,2.88772817,555.78,555.33,0.29730349]
[1741560246600,2.88772817,555.77,555.33,0.29730349]
[1741560246792,2.88772817,555.76,555.33,0.29730349]
[1741560247095,2.88772817,555.75,555.33,0.29730349]
[1741560247396,6.53549236,555.74,555.32,0.3601527]
[1741560247597,1.08862994,555.73,555.33,0.29735471]
[1741560247797,1.40302018,555.72,555.33,0.29735471]
[1741560247997,1.40302018,555.72,555.32,0.3601527]
[1741560248391,1.71632059,555.71,555.32,0.3601527]
[1741560248698,1.71632059,555.71,555.33,0.29734594]
[1741560248897,4.28983781,555.7,555.33,0.29734594]
[1741560249099,2.88681763,555.69,555.32,0.3601527]
[1741560249394,7.50536251,555.68,555.32,0.3601527]
[1741560249600,9.74609929,555.67,555.32,0.3601527]
[1741560249795,8.04537664,555.66,555.32,0.3601527]
[1741560249994,8.04537664,555.65,555.32,0.3601527]
[1741560250192,8.04537664,555.64,554.89,1.3329422]
[1741560250396,8.04537664,555.63,554.9,0.65793487]
[1741560250599,8.04537664,555.62,554.91,0.65792837]
[1741560250800,7.50536251,555.61,554.92,0.65792188]
[1741560251098,11.14911947,555.6,554.93,0.65791538]
[1741560251295,3.64375696,555.6,554.94,0.65790889]
[1741560251501,3.64375696,555.6,554.95,0.29750957]
[1741560251694,3.64375696,555.6,554.96,0.34211259]
[1741560251899,1.40302018,555.59,554.97,0.29750957]
[1741560252096,1.40302018,555.59,554.98,0.36037334]
[1741560252300,1.40302018,555.58,554.99,0.29750957]
[1741560252501,1.40302018,555.58,555.0,0.36036036]
[1741560252800,1.40302018,555.58,555.01,0.29750957]
[1741560253001,1.40302018,555.58,555.02,0.36034737]
[1741560253201,0.89,555.74,555.03,0.29750957]
[1741560253400,0.3133385,555.57,555.04,0.36033439]
[1741560253601,0.3133385,555.57,555.05,0.29750957]
[1741560253902,2.88448382,555.71,555.06,0.3603214]
[1741560254110,2.88448382,555.7,555.07,0.29750957]
[1741560254303,2.88448382,555.69,555.07,0.65782448]
[1741560254602,2.88448382,555.68,555.08,0.29750957]
[1741560254804,3.63338929,555.68,555.09,0.36030193]
[1741560255101,3.63338929,555.68,555.1,0.29750957]
[1741560255899,0.3133117,555.69,555.1,0.29750957]
[1741560256098,0.26,555.67,555.11,0.36028895]
[1741560256296,0.26,555.67,555.12,0.29733059]
[1741560256703,0.26,555.67,555.13,0.36027597]
[1741560256897,0.26,555.67,555.14,0.29733059]
[1741560257098,0.26,555.67,555.15,0.36026299]
[1741560257304,0.26,555.67,555.16,0.29733059]
[1741560257503,0.31327644,555.66,555.17,0.36025001]
[1741560257703,0.31327644,555.66,555.18,0.29733059]
[1741560258704,0.31327644,555.66,555.19,0.36023703]
[1741560258903,0.31327644,555.66,555.2,0.29733059]
[1741560259105,0.31327644,555.66,555.21,0.36022405]
[1741560259314,0.26,555.67,555.22,0.29733059]
[1741560259507,0.26,555.67,555.23,0.36021108]
[1741560259711,0.31324683,555.65,555.24,0.29733059]
[1741560260106,0.31324683,555.65,555.23,0.36021108]
[1741560260311,0.31324683,555.65,555.24,0.29734536]
[1741560260704,0.31324683,555.65,555.23,0.36021108]
[1741560262408,0.26,555.67,555.23,0.36021108]
[1741560263617,0.31334837,555.66,555.23,0.36021108]
[1741560265417,0.26,555.67,555.23,0.36021108]
[1741560266621,0.31331875,555.66,555.23,0.36021108]
[1741560267713,0.688,555.65,555.23,0.36021108]
[1741560268714,0.688,555.65,555.24,0.29735849]
[1741560268914,0.688,555.65,555.24,0.65756308]
[1741560269116,0.688,555.65,555.24,0.36020459]
[1741560269318,0.688,555.65,555.25,0.29735982]
[1741560269515,0.31325388,555.64,555.25,0.29735982]
[1741560270519,0.31325388,555.64,555.24,0.36020459]
[1741560271314,0.688,555.65,555.24,0.36020459]
[1741560272222,4.27505459,555.64,555.24,0.36020459]
[1741560272521,4.61118469,555.63,555.24,0.36020459]
[1741560272722,2.88139317,555.62,555.24,0.36020459]
[1741560272925,2.88139317,555.61,555.24,0.36020459]
[1741560273223,3.62440631,555.61,555.24,0.36020459]
[1741560273425,4.27505682,555.6,555.24,0.36020459]
[1741560273622,2.88118621,555.59,555.24,0.36020459]
[1741560273823,2.88118621,555.58,555.24,0.36020459]
[1741560274017,6.50559252,555.57,555.24,0.36020459]
[1741560274224,1.08131145,555.56,555.24,0.36020459]
[1741560274424,1.08109196,555.55,555.24,0.36020459]
[1741560274624,2.88138919,555.54,555.24,0.36020459]
[1741560274825,0.31342316,555.54,555.24,0.36020459]
[1741560275023,1.39387061,555.53,554.7,1.3329422]
[1741560275219,1.39387061,555.53,554.72,0.36054225]
[1741560275422,1.39387061,555.53,554.73,0.29750025]
[1741560275622,1.39387061,555.52,554.74,0.36052925]
[1741560275825,1.39387061,555.52,554.75,0.29750025]
[1741560276021,1.39387061,555.51,554.76,0.36051625]
[1741560276220,1.39387061,555.51,554.77,0.29750025]
[1741560276418,1.39387061,555.51,554.78,0.36050326]
[1741560276625,1.39387061,555.5,554.79,0.2975034]
[1741560276822,1.39387061,555.5,554.8,0.36049026]
[1741560277022,1.39387061,555.5,554.81,0.2975034]
[1741560277225,0.688,555.65,554.82,0.36047727]
[1741560277226,1.39387061,555.49,554.82,0.36047727]
[1741560277426,1.39387061,555.49,554.83,0.29749388]
[1741560277727,0.31341046,555.49,554.84,0.36046427]
[1741560277928,1.39299926,555.48,554.84,0.36046427]
[1741560278529,1.39299926,555.47,554.84,0.36046427]
[1741560279329,0.31341046,555.49,554.84,0.36046427]
[1741560279330,1.39299926,555.46,554.84,0.36046427]
[1741560279824,1.39299926,555.45,554.84,0.36046427]
[1741560280428,1.39299926,555.44,554.84,0.36046427]
[1741560280628,1.70648877,555.44,554.84,0.36046427]
[1741560280832,0.31348951,555.44,554.84,0.36046427]
[1741560283030,0.888,555.44,554.84,0.36046427]
[1741560283331,0.888,555.44,554.85,0.29746322]
[1741560283531,0.888,555.44,554.86,0.36045128]
[1741560283731,0.888,555.44,554.87,0.29746322]
[1741560283930,0.888,555.44,554.88,0.36043829]
[1741560284127,0.888,555.44,554.89,0.29744603]
[1741560284330,0.888,555.44,554.9,0.3604253]
[1741560284527,0.888,555.44,554.91,0.29744603]
[1741560284731,0.888,555.44,554.92,0.36041231]
[1741560284931,0.888,555.44,554.93,0.29744603]
[1741560285133,0.888,555.44,554.94,0.36039932]
[1741560285329,0.888,555.44,554.95,0.29744603]
[1741560285634,0.888,555.44,554.96,0.36038633]
[1741560286035,0.888,555.44,554.97,0.29738329]